[Event "Late-Titled-Tuesday-Blitz-June-25-2024"]
[Site "Chess.com"]
[Date "2024.06.25"]
[Round "4"]
[White "nindjaxx8"]
[Black "yaguigor"]
[Result "0-1"]
[WhiteElo "2721"]
[BlackElo "2563"]
[TimeControl "180+1"]
[EndTime "14:37:41 PDT"]
[Termination "yaguigor won by resignation"]

1. d4 {[%clk 0:03:00.9]} 1... d5 {[%clk 0:02:58.9]} 2. c4 {[%clk 0:03:01.4]}
2... c6 {[%clk 0:02:58.6]} 3. Nc3 {[%clk 0:03:01.9]} 3... Nf6 {[%clk 0:02:58.7]}
4. cxd5 {[%clk 0:03:02.3]} 4... cxd5 {[%clk 0:02:58.3]} 5. Bf4 {[%clk
0:03:02.8]} 5... Nc6 {[%clk 0:02:58.6]} 6. e3 {[%clk 0:03:03.2]} 6... Bf5 {[%clk
0:02:58.2]} 7. Nf3 {[%clk 0:03:03.6]} 7... e6 {[%clk 0:02:58.2]} 8. Bd3 {[%clk
0:03:03.6]} 8... Bxd3 {[%clk 0:02:57.4]} 9. Qxd3 {[%clk 0:03:04.5]} 9... a6
{[%clk 0:02:53.4]} 10. O-O {[%clk 0:03:03.1]} 10... Be7 {[%clk 0:02:51.6]} 11.
a3 {[%clk 0:03:02.7]} 11... O-O {[%clk 0:02:46.8]} 12. Rac1 {[%clk 0:03:01]}
12... Qa5 {[%clk 0:02:43.9]} 13. Ne2 {[%clk 0:02:39.4]} 13... Rfc8 {[%clk
0:02:39.1]} 14. Ng3 {[%clk 0:02:37.4]} 14... Qb5 {[%clk 0:02:31.5]} 15. Qb1
{[%clk 0:02:34.8]} 15... Na5 {[%clk 0:02:28.8]} 16. Bg5 {[%clk 0:01:54.9]} 16...
h6 {[%clk 0:02:16.7]} 17. Bxf6 {[%clk 0:01:49.5]} 17... Bxf6 {[%clk 0:02:17.6]}
18. Nh5 {[%clk 0:01:49.9]} 18... Be7 {[%clk 0:02:16.2]} 19. Ne5 {[%clk
0:01:43.4]} 19... Nb3 {[%clk 0:02:13]} 20. Rxc8+ {[%clk 0:01:40.1]} 20... Rxc8
{[%clk 0:02:13.9]} 21. Re1 {[%clk 0:01:19]} 21... Bd6 {[%clk 0:01:45.6]} 22. h3
{[%clk 0:00:44.3]} 22... Bxe5 {[%clk 0:01:37.2]} 23. dxe5 {[%clk 0:00:45.2]}
23... Qc4 {[%clk 0:01:36.4]} 24. Qd1 {[%clk 0:00:41.2]} 24... Qc1 {[%clk
0:01:30]} 25. Qe2 {[%clk 0:00:25.8]} 25... Qxe1+ {[%clk 0:01:26.9]} 26. Qxe1
{[%clk 0:00:24.9]} 26... Rc1 {[%clk 0:01:27.6]} 27. Kf1 {[%clk 0:00:21.7]} 27...
Nd2+ {[%clk 0:01:26.2]} 28. Ke2 {[%clk 0:00:20.3]} 28... Rxe1+ {[%clk
0:01:27.1]} 29. Kxe1 {[%clk 0:00:20.8]} 29... Nc4 {[%clk 0:01:27.7]} 30. Kd1
{[%clk 0:00:15]} 30... Nxb2+ {[%clk 0:01:26.9]} 31. Kc2 {[%clk 0:00:15.3]} 31...
Nc4 {[%clk 0:01:27.6]} 32. Kb3 {[%clk 0:00:14.3]} 32... Nxe5 {[%clk 0:01:27.5]}
33. Kb4 {[%clk 0:00:14.1]} 33... Nd3+ {[%clk 0:01:22.7]} 34. Ka5 {[%clk
0:00:12.7]} 34... Nxf2 {[%clk 0:01:21.3]} 35. Kb6 {[%clk 0:00:13.2]} 35... Nd1
{[%clk 0:01:17.5]} 36. Kxb7 {[%clk 0:00:12.7]} 36... Nxe3 {[%clk 0:01:17.6]} 37.
Kxa6 {[%clk 0:00:12.3]} 37... d4 {[%clk 0:01:16.1]} 38. Ng3 {[%clk 0:00:08.1]}
38... d3 {[%clk 0:01:12.7]} 39. Ne4 {[%clk 0:00:08.4]} 39... Nc4 {[%clk
0:01:12.6]} 40. a4 {[%clk 0:00:05.6]} 40... d2 {[%clk 0:01:11.9]} 41. Nxd2
{[%clk 0:00:05.6]} 41... Nxd2 {[%clk 0:01:11.2]} 42. Kb5 {[%clk 0:00:06.3]}
42... Nb3 {[%clk 0:01:09.7]} 43. Kb4 {[%clk 0:00:03.6]} 43... Nd4 {[%clk
0:01:09.7]} 44. Kc5 {[%clk 0:00:04]} 44... e5 {[%clk 0:01:09]} 45. Kd5 {[%clk
0:00:03.9]} 45... Nb3 {[%clk 0:01:06.8]} 46. Kxe5 {[%clk 0:00:04.2]} 46... Kf8
{[%clk 0:01:06.8]} 47. Kd5 {[%clk 0:00:04.5]} 47... Ke7 {[%clk 0:01:06.8]} 48.
Kc4 {[%clk 0:00:05.2]} 48... Na5+ {[%clk 0:01:02.6]} 49. Kb5 {[%clk 0:00:05.5]}
49... Nb7 {[%clk 0:01:02.7]} 50. Kb6 {[%clk 0:00:04.2]} 50... Nd6 {[%clk
0:01:02.8]} 51. Kc6 {[%clk 0:00:03.3]} 51... Nc4 {[%clk 0:00:59.9]} 52. Kc5
{[%clk 0:00:03.1]} 52... Ne5 {[%clk 0:00:54.9]} 53. a5 {[%clk 0:00:02.4]} 53...
Kd7 {[%clk 0:00:55.5]} 54. a6 {[%clk 0:00:02.2]} 54... Nc6 {[%clk 0:00:55.8]}
55. Kb6 {[%clk 0:00:02.3]} 55... Kd6 {[%clk 0:00:51.5]} 56. Kb7 {[%clk
0:00:02.7]} 56... f5 {[%clk 0:00:50.8]} 57. Kb6 {[%clk 0:00:01]} 57... g5 {[%clk
0:00:50.2]} 58. Kb5 {[%clk 0:00:01.7]} 58... Kd5 {[%clk 0:00:47.6]} 59. Kb6
{[%clk 0:00:01]} 59... f4 {[%clk 0:00:47.6]} 60. Kc7 {[%clk 0:00:01]} 60... h5
{[%clk 0:00:46.9]} 61. Kd7 {[%clk 0:00:01.9]} 61... g4 {[%clk 0:00:46.7]} 62.
hxg4 {[%clk 0:00:02.6]} 0-1

[Event "Late-Titled-Tuesday-Blitz-June-25-2024"]
[Site "Chess.com"]
[Date "2024.06.25"]
[Round "4"]
[White "mostafa_sakha"]
[Black "enriquebutti"]
[Result "1-0"]
[WhiteElo "2446"]
[BlackElo "2189"]
[TimeControl "180+1"]
[EndTime "14:37:41 PDT"]
[Termination "mostafa_sakha won by resignation"]

1. d4 {[%clk 0:03:00]} 1... Nf6 {[%clk 0:02:59.1]} 2. c4 {[%clk 0:03:00.2]} 2...
e6 {[%clk 0:02:58.4]} 3. Nc3 {[%clk 0:03:00.6]} 3... c5 {[%clk 0:02:57.6]} 4. d5
{[%clk 0:03:00.6]} 4... exd5 {[%clk 0:02:57.4]} 5. cxd5 {[%clk 0:03:01.5]} 5...
d6 {[%clk 0:02:57.9]} 6. e4 {[%clk 0:03:01.9]} 6... g6 {[%clk 0:02:57.4]} 7. h3
{[%clk 0:03:01.9]} 7... Bg7 {[%clk 0:02:55.1]} 8. Nf3 {[%clk 0:03:02.4]} 8...
O-O {[%clk 0:02:54.3]} 9. Bd3 {[%clk 0:03:02.9]} 9... b6 {[%clk 0:02:49.3]} 10.
O-O {[%clk 0:03:01.8]} 10... Ba6 {[%clk 0:02:47.9]} 11. Re1 {[%clk 0:02:56.7]}
11... c4 {[%clk 0:02:43.3]} 12. Bc2 {[%clk 0:02:53.2]} 12... b5 {[%clk
0:02:42.9]} 13. a3 {[%clk 0:02:53]} 13... Nbd7 {[%clk 0:02:41]} 14. Bf4 {[%clk
0:02:51.9]} 14... Qb6 {[%clk 0:02:37.9]} 15. e5 {[%clk 0:02:40.3]} 15... dxe5
{[%clk 0:02:36.8]} 16. Nxe5 {[%clk 0:02:39.5]} 16... Nxe5 {[%clk 0:02:36.3]} 17.
Bxe5 {[%clk 0:02:38.5]} 17... Rad8 {[%clk 0:02:31.3]} 18. Qf3 {[%clk 0:02:34.8]}
18... Bb7 {[%clk 0:02:26.5]} 19. Rad1 {[%clk 0:02:31.9]} 19... Rfe8 {[%clk
0:02:19.8]} 20. Qg3 {[%clk 0:01:52]} 20... Qc5 {[%clk 0:02:07.1]} 21. Bc7 {[%clk
0:01:26.6]} 21... Rxe1+ {[%clk 0:01:58.9]} 22. Rxe1 {[%clk 0:01:27.5]} 22... Rc8
{[%clk 0:01:47.1]} 23. d6 {[%clk 0:01:26.3]} 23... a5 {[%clk 0:01:32.3]} 24. Re5
{[%clk 0:01:24.5]} 24... Qc6 {[%clk 0:01:21.6]} 25. Rxb5 {[%clk 0:01:16.7]}
25... Nh5 {[%clk 0:01:20.2]} 26. Qf3 {[%clk 0:00:42]} 26... Qxb5 {[%clk
0:00:46.8]} 27. Nxb5 {[%clk 0:00:37.8]} 27... Bxf3 {[%clk 0:00:46]} 28. gxf3
{[%clk 0:00:32.9]} 28... Nf6 {[%clk 0:00:44.8]} 29. Na7 {[%clk 0:00:24.9]} 29...
Ra8 {[%clk 0:00:38.4]} 30. Nc6 {[%clk 0:00:20]} 30... Bf8 {[%clk 0:00:28.1]} 31.
Ba4 {[%clk 0:00:13.9]} 31... Rc8 {[%clk 0:00:19.8]} 32. Nxa5 {[%clk 0:00:13.2]}
32... Ra8 {[%clk 0:00:13.7]} 33. Nxc4 {[%clk 0:00:13]} 33... Rxa4 {[%clk
0:00:12.2]} 34. b4 {[%clk 0:00:13.4]} 34... Ra8 {[%clk 0:00:10.9]} 35. Kf1
{[%clk 0:00:13.2]} 35... Nd5 {[%clk 0:00:08.4]} 36. Ke2 {[%clk 0:00:13.2]} 36...
Nxc7 {[%clk 0:00:07.3]} 37. dxc7 {[%clk 0:00:13.2]} 37... Rc8 {[%clk 0:00:07.7]}
38. Kd3 {[%clk 0:00:11.8]} 38... Rxc7 {[%clk 0:00:08.6]} 39. b5 {[%clk
0:00:11.4]} 39... Rb7 {[%clk 0:00:08.4]} 40. a4 {[%clk 0:00:11.3]} 40... Bc5
{[%clk 0:00:08.5]} 41. Ke4 {[%clk 0:00:09.3]} 41... Kf8 {[%clk 0:00:09.4]} 42.
Kd5 {[%clk 0:00:09.6]} 42... Ke7 {[%clk 0:00:10.2]} 43. Kxc5 {[%clk 0:00:09.7]}
1-0

[Event "Late-Titled-Tuesday-Blitz-June-25-2024"]
[Site "Chess.com"]
[Date "2024.06.25"]
[Round "4"]
[White "artin10862"]
[Black "SpeedofLight0"]
[Result "0-1"]
[WhiteElo "2904"]
[BlackElo "3155"]
[TimeControl "180+1"]
[EndTime "14:37:42 PDT"]
[Termination "SpeedofLight0 won by resignation"]

1. c4 {[%clk 0:02:51.1]} 1... g6 {[%clk 0:02:55.9]} 2. g3 {[%clk 0:02:50.3]}
2... Bg7 {[%clk 0:02:55.5]} 3. Bg2 {[%clk 0:02:51]} 3... Nf6 {[%clk 0:02:52.5]}
4. Nc3 {[%clk 0:02:51]} 4... O-O {[%clk 0:02:52.5]} 5. d4 {[%clk 0:02:48.5]}
5... d6 {[%clk 0:02:51.9]} 6. e3 {[%clk 0:02:48]} 6... e5 {[%clk 0:02:49.6]} 7.
Nge2 {[%clk 0:02:48.5]} 7... c6 {[%clk 0:02:43]} 8. h3 {[%clk 0:02:43.6]} 8...
h5 {[%clk 0:02:42.3]} 9. O-O {[%clk 0:02:33.3]} 9... Re8 {[%clk 0:02:37.4]} 10.
Qc2 {[%clk 0:02:27.9]} 10... a5 {[%clk 0:02:20.4]} 11. Rd1 {[%clk 0:02:21.1]}
11... Qe7 {[%clk 0:02:20.3]} 12. e4 {[%clk 0:02:19.6]} 12... Na6 {[%clk
0:02:14.8]} 13. d5 {[%clk 0:02:08.1]} 13... cxd5 {[%clk 0:02:12]} 14. cxd5
{[%clk 0:02:08]} 14... Bd7 {[%clk 0:02:11.8]} 15. a4 {[%clk 0:02:07.8]} 15...
Rec8 {[%clk 0:02:10.6]} 16. Be3 {[%clk 0:02:07]} 16... Qf8 {[%clk 0:02:07.8]}
17. Qd2 {[%clk 0:01:39.8]} 17... Nc5 {[%clk 0:02:07.7]} 18. Ra3 {[%clk
0:01:39.6]} 18... Kh7 {[%clk 0:02:07.9]} 19. f3 {[%clk 0:01:20.2]} 19... Bh6
{[%clk 0:02:07.3]} 20. g4 {[%clk 0:01:20.1]} 20... Bxe3+ {[%clk 0:02:01.9]} 21.
Qxe3 {[%clk 0:01:21]} 21... Qd8 {[%clk 0:01:55.6]} 22. Ng3 {[%clk 0:01:01]}
22... h4 {[%clk 0:01:55.6]} 23. Nf1 {[%clk 0:00:59.1]} 23... Kg7 {[%clk
0:01:55.5]} 24. Qf2 {[%clk 0:00:56.5]} 24... Nh7 {[%clk 0:01:55.4]} 25. Ne3
{[%clk 0:00:55.4]} 25... Ng5 {[%clk 0:01:53.8]} 26. Bf1 {[%clk 0:00:50.4]} 26...
Qf6 {[%clk 0:01:53.8]} 27. Kg2 {[%clk 0:00:46.2]} 27... Qe7 {[%clk 0:01:29.6]}
28. Bb5 {[%clk 0:00:45.8]} 28... Rh8 {[%clk 0:01:16.3]} 29. Bxd7 {[%clk
0:00:44.9]} 29... Nxd7 {[%clk 0:01:11.5]} 30. Nb5 {[%clk 0:00:41.2]} 30... Rac8
{[%clk 0:01:11.2]} 31. Rc3 {[%clk 0:00:39.7]} 31... Rxc3 {[%clk 0:01:10.7]} 32.
Nxc3 {[%clk 0:00:40]} 32... Nc5 {[%clk 0:01:08.4]} 33. Qe2 {[%clk 0:00:28.7]}
33... Ra8 {[%clk 0:01:03.2]} 34. Nc4 {[%clk 0:00:22.3]} 34... f6 {[%clk
0:00:30.7]} 35. Ra1 {[%clk 0:00:21.7]} 35... Kh7 {[%clk 0:00:29.2]} 36. Nb5
{[%clk 0:00:21.5]} 36... Nf7 {[%clk 0:00:28.7]} 37. Qf2 {[%clk 0:00:19.8]} 37...
f5 {[%clk 0:00:29.2]} 38. gxf5 {[%clk 0:00:17.5]} 38... gxf5 {[%clk 0:00:30.1]}
39. Kh1 {[%clk 0:00:17.6]} 39... Rg8 {[%clk 0:00:26.9]} 40. Rg1 {[%clk
0:00:17.1]} 40... Rxg1+ {[%clk 0:00:24.8]} 41. Qxg1 {[%clk 0:00:17.8]} 41...
fxe4 {[%clk 0:00:23.3]} 42. Nbxd6 {[%clk 0:00:14]} 42... Nd3 {[%clk 0:00:11.6]}
43. Nxe4 {[%clk 0:00:14]} 43... Nf4 {[%clk 0:00:10.5]} 44. Qg4 {[%clk
0:00:09.9]} 44... Nh6 {[%clk 0:00:11]} 45. Qh5 {[%clk 0:00:06.3]} 45... Nxh5
{[%clk 0:00:09.9]} 46. d6 {[%clk 0:00:06.5]} 46... Qe6 {[%clk 0:00:10.2]} 0-1

[Event "Late-Titled-Tuesday-Blitz-June-25-2024"]
[Site "Chess.com"]
[Date "2024.06.25"]
[Round "4"]
[White "rychessmaster1"]
[Black "AryanTari"]
[Result "0-1"]
[WhiteElo "2796"]
[BlackElo "3023"]
[TimeControl "180+1"]
[EndTime "14:37:43 PDT"]
[Termination "AryanTari won by resignation"]

1. d4 {[%clk 0:03:00.9]} 1... d5 {[%clk 0:02:58.7]} 2. c4 {[%clk 0:03:00.7]}
2... e6 {[%clk 0:02:58.5]} 3. Nc3 {[%clk 0:03:00.5]} 3... c5 {[%clk 0:02:57.7]}
4. cxd5 {[%clk 0:03:00.4]} 4... cxd4 {[%clk 0:02:57.5]} 5. Qa4+ {[%clk
0:02:59.7]} 5... Bd7 {[%clk 0:02:57.1]} 6. Qxd4 {[%clk 0:03:00.3]} 6... exd5
{[%clk 0:02:56.4]} 7. Qxd5 {[%clk 0:03:01.2]} 7... Nf6 {[%clk 0:02:55.4]} 8. Qb3
{[%clk 0:03:01.5]} 8... Na6 {[%clk 0:02:55.4]} 9. Nf3 {[%clk 0:02:53]} 9... Nc5
{[%clk 0:02:55.3]} 10. Qc2 {[%clk 0:02:53.1]} 10... Rc8 {[%clk 0:02:55]} 11. e3
{[%clk 0:02:50.6]} 11... Nce4 {[%clk 0:02:49.8]} 12. Bd2 {[%clk 0:02:47.2]}
12... Bb4 {[%clk 0:02:42.8]} 13. Bd3 {[%clk 0:02:40.2]} 13... Nxd2 {[%clk
0:02:30.1]} 14. Qxd2 {[%clk 0:02:40]} 14... Nd5 {[%clk 0:02:08.4]} 15. Rc1
{[%clk 0:02:36.6]} 15... Qa5 {[%clk 0:02:05.2]} 16. O-O {[%clk 0:02:33.4]} 16...
Nxc3 {[%clk 0:02:03.9]} 17. bxc3 {[%clk 0:02:34.1]} 17... Bxc3 {[%clk
0:02:00.9]} 18. Qe2 {[%clk 0:02:34.2]} 18... O-O {[%clk 0:02:00.2]} 19. Rfd1
{[%clk 0:02:15]} 19... Ba4 {[%clk 0:01:58.5]} 20. Bc2 {[%clk 0:02:13]} 20... Bb2
{[%clk 0:01:51.8]} 21. Bxh7+ {[%clk 0:01:41.6]} 21... Kxh7 {[%clk 0:01:52.7]}
22. Qxb2 {[%clk 0:01:41.9]} 22... Bxd1 {[%clk 0:01:51.5]} 23. Rxd1 {[%clk
0:01:42.8]} 23... Rc7 {[%clk 0:01:48.1]} 24. g3 {[%clk 0:01:38.6]} 24... Qf5
{[%clk 0:01:29.6]} 25. Kg2 {[%clk 0:01:33.4]} 25... Re8 {[%clk 0:01:01]} 26. Rd4
{[%clk 0:01:20.1]} 26... f6 {[%clk 0:00:56.1]} 27. Qb3 {[%clk 0:00:53.6]} 27...
Qe6 {[%clk 0:00:49.8]} 28. Qd3+ {[%clk 0:00:53.8]} 28... Kg8 {[%clk 0:00:49.3]}
29. a4 {[%clk 0:00:52]} 29... Kf7 {[%clk 0:00:43.6]} 30. Rf4 {[%clk 0:00:48.8]}
30... Kg8 {[%clk 0:00:28.5]} 31. Rd4 {[%clk 0:00:46]} 31... Qc6 {[%clk
0:00:28.1]} 32. Qg6 {[%clk 0:00:41.7]} 32... f5 {[%clk 0:00:07.8]} 33. Qg5
{[%clk 0:00:33.8]} 33... Qf6 {[%clk 0:00:05.8]} 34. Qf4 {[%clk 0:00:34.1]} 34...
Rce7 {[%clk 0:00:06]} 35. Rd6 {[%clk 0:00:30.2]} 35... Re6 {[%clk 0:00:05.8]}
36. Rd7 {[%clk 0:00:30.7]} 36... R6e7 {[%clk 0:00:06]} 37. Rd6 {[%clk
0:00:31.1]} 37... Re4 {[%clk 0:00:05.6]} 38. Rxf6 {[%clk 0:00:16.9]} 38... Rxf4
{[%clk 0:00:06.1]} 39. gxf4 {[%clk 0:00:16.5]} 39... gxf6 {[%clk 0:00:05.6]} 40.
Nd4 {[%clk 0:00:17.3]} 40... Rc8 {[%clk 0:00:04.2]} 41. h4 {[%clk 0:00:14.7]}
41... Rc4 {[%clk 0:00:03.9]} 42. a5 {[%clk 0:00:14.3]} 42... Ra4 {[%clk
0:00:04.1]} 43. Nxf5 {[%clk 0:00:14.3]} 43... Rxa5 {[%clk 0:00:04.1]} 44. Nd6
{[%clk 0:00:13.2]} 44... b5 {[%clk 0:00:03.9]} 45. e4 {[%clk 0:00:13.8]} 45...
b4 {[%clk 0:00:04]} 46. Kf3 {[%clk 0:00:12.2]} 46... b3 {[%clk 0:00:03.8]} 47.
Nc4 {[%clk 0:00:12.7]} 47... Rc5 {[%clk 0:00:04.4]} 48. Nb2 {[%clk 0:00:12.2]}
48... Rc2 {[%clk 0:00:04.9]} 0-1

[Event "Late-Titled-Tuesday-Blitz-June-25-2024"]
[Site "Chess.com"]
[Date "2024.06.25"]
[Round "4"]
[White "Laico"]
[Black "Snowball-03"]
[Result "1-0"]
[WhiteElo "2454"]
[BlackElo "2633"]
[TimeControl "180+1"]
[EndTime "14:37:43 PDT"]
[Termination "Laico won by resignation"]

1. e4 {[%clk 0:02:55.9]} 1... c5 {[%clk 0:02:59.4]} 2. Nc3 {[%clk 0:02:55.7]}
2... Nc6 {[%clk 0:02:59.6]} 3. f4 {[%clk 0:02:55.8]} 3... g6 {[%clk 0:02:59.1]}
4. Nf3 {[%clk 0:02:56]} 4... Bg7 {[%clk 0:02:59.1]} 5. Bb5 {[%clk 0:02:56.2]}
5... Nd4 {[%clk 0:02:55]} 6. O-O {[%clk 0:02:56.3]} 6... e6 {[%clk 0:02:53.5]}
7. d3 {[%clk 0:02:52.9]} 7... Ne7 {[%clk 0:02:52.9]} 8. Nxd4 {[%clk 0:02:52.3]}
8... cxd4 {[%clk 0:02:52.3]} 9. Ne2 {[%clk 0:02:53.2]} 9... O-O {[%clk 0:02:43]}
10. Ba4 {[%clk 0:02:52.7]} 10... d6 {[%clk 0:02:34.6]} 11. Bb3 {[%clk
0:02:52.2]} 11... b5 {[%clk 0:02:23.9]} 12. Ng3 {[%clk 0:02:51.5]} 12... a5
{[%clk 0:02:18.9]} 13. a4 {[%clk 0:02:46]} 13... bxa4 {[%clk 0:02:16.4]} 14.
Rxa4 {[%clk 0:02:46.6]} 14... Bd7 {[%clk 0:02:15.2]} 15. Ra1 {[%clk 0:02:42.5]}
15... a4 {[%clk 0:02:15.3]} 16. Ba2 {[%clk 0:02:42.8]} 16... Qb6 {[%clk
0:02:04.4]} 17. Kh1 {[%clk 0:02:41.1]} 17... f5 {[%clk 0:01:49.3]} 18. exf5
{[%clk 0:02:37.9]} 18... Nxf5 {[%clk 0:01:49.1]} 19. Qg4 {[%clk 0:02:26.3]}
19... d5 {[%clk 0:01:44.1]} 20. Nxf5 {[%clk 0:02:06.5]} 20... Rxf5 {[%clk
0:01:41.6]} 21. Rb1 {[%clk 0:02:06.4]} 21... Raf8 {[%clk 0:01:37]} 22. Bd2
{[%clk 0:02:05.9]} 22... Qd6 {[%clk 0:01:27.8]} 23. Qe2 {[%clk 0:01:55.6]} 23...
h5 {[%clk 0:01:19.1]} 24. Qe1 {[%clk 0:01:54.4]} 24... Kh7 {[%clk 0:01:11.4]}
25. Bb4 {[%clk 0:01:54]} 25... Qc7 {[%clk 0:01:08]} 26. Bxf8 {[%clk 0:01:53.8]}
26... Rxf8 {[%clk 0:01:08.7]} 27. Qd2 {[%clk 0:01:40.6]} 27... Bh6 {[%clk
0:01:02.3]} 28. c3 {[%clk 0:01:11.5]} 28... Rxf4 {[%clk 0:00:56]} 29. Rxf4
{[%clk 0:01:05.5]} 29... Bxf4 {[%clk 0:00:56.9]} 30. Qf2 {[%clk 0:01:05.4]}
30... Be5 {[%clk 0:00:35.7]} 31. Qf7+ {[%clk 0:00:57.7]} 31... Bg7 {[%clk
0:00:36.2]} 32. cxd4 {[%clk 0:00:32.5]} 32... a3 {[%clk 0:00:28]} 33. bxa3
{[%clk 0:00:23.8]} 33... Qc2 {[%clk 0:00:27.2]} 34. Qxd7 {[%clk 0:00:18.8]}
34... Qxa2 {[%clk 0:00:26.5]} 35. Rf1 {[%clk 0:00:18.6]} 35... Qxa3 {[%clk
0:00:26.8]} 36. h3 {[%clk 0:00:15]} 36... Qxd3 {[%clk 0:00:26.7]} 37. Rf7 {[%clk
0:00:15.1]} 37... Qxd4 {[%clk 0:00:27]} 38. Qxe6 {[%clk 0:00:15]} 38... Kh6
{[%clk 0:00:26.9]} 39. Rf1 {[%clk 0:00:12]} 39... Qh4 {[%clk 0:00:19.4]} 40.
Qxd5 {[%clk 0:00:08.5]} 40... Qg3 {[%clk 0:00:19.7]} 41. Qf3 {[%clk 0:00:07]}
41... Qd6 {[%clk 0:00:16.4]} 42. Qf4+ {[%clk 0:00:07.3]} 42... Qxf4 {[%clk
0:00:16.7]} 43. Rxf4 {[%clk 0:00:08.2]} 43... Kg5 {[%clk 0:00:17.5]} 44. Rc4
{[%clk 0:00:07.8]} 44... h4 {[%clk 0:00:17.6]} 45. Kg1 {[%clk 0:00:07.7]} 45...
Be5 {[%clk 0:00:17.9]} 46. Kf1 {[%clk 0:00:08]} 46... Bg3 {[%clk 0:00:18.5]} 47.
Ke2 {[%clk 0:00:08.4]} 47... Kf5 {[%clk 0:00:19.1]} 48. Kf3 {[%clk 0:00:08.7]}
48... g5 {[%clk 0:00:20]} 49. Rc5+ {[%clk 0:00:07.8]} 49... Kf6 {[%clk
0:00:20.2]} 50. Kg4 {[%clk 0:00:07.5]} 50... Bf4 {[%clk 0:00:20.6]} 51. Rf5+
{[%clk 0:00:07.3]} 51... Ke6 {[%clk 0:00:20.3]} 52. Rxf4 {[%clk 0:00:07]} 52...
gxf4 {[%clk 0:00:21.2]} 53. Kxf4 {[%clk 0:00:07.5]} 53... Kf6 {[%clk 0:00:22.1]}
54. Kg4 {[%clk 0:00:08.1]} 1-0

[Event "Late-Titled-Tuesday-Blitz-June-25-2024"]
[Site "Chess.com"]
[Date "2024.06.25"]
[Round "4"]
[White "jens1102"]
[Black "Beaterawn"]
[Result "1-0"]
[WhiteElo "2606"]
[BlackElo "2405"]
[TimeControl "180+1"]
[EndTime "14:37:44 PDT"]
[Termination "jens1102 won on time"]

1. Nf3 {[%clk 0:00:18.1]} 1... f5 {[%clk 0:02:55.2]} 2. g3 {[%clk 0:00:19]} 2...
g6 {[%clk 0:02:53.7]} 3. Bg2 {[%clk 0:00:19.9]} 3... Bg7 {[%clk 0:02:54.1]} 4.
O-O {[%clk 0:00:20.8]} 4... e5 {[%clk 0:02:54.2]} 5. d4 {[%clk 0:00:21.7]} 5...
e4 {[%clk 0:02:54.3]} 6. Ng5 {[%clk 0:00:21.3]} 6... d5 {[%clk 0:02:52]} 7. c4
{[%clk 0:00:21.6]} 7... c6 {[%clk 0:02:35.2]} 8. Nc3 {[%clk 0:00:22.1]} 8... Nf6
{[%clk 0:02:33.9]} 9. Nh3 {[%clk 0:00:21.3]} 9... O-O {[%clk 0:02:33.7]} 10. Qb3
{[%clk 0:00:21.8]} 10... Kh8 {[%clk 0:02:33.3]} 11. cxd5 {[%clk 0:00:21.1]}
11... Nxd5 {[%clk 0:02:32.5]} 12. Nf4 {[%clk 0:00:22]} 12... Nxf4 {[%clk
0:02:31.6]} 13. Bxf4 {[%clk 0:00:21.5]} 13... Qxd4 {[%clk 0:02:31.6]} 14. Rad1
{[%clk 0:00:20.7]} 14... Qf6 {[%clk 0:02:32]} 15. Rd6 {[%clk 0:00:18.8]} 15...
Qe7 {[%clk 0:02:18.4]} 16. Rfd1 {[%clk 0:00:18.9]} 16... Na6 {[%clk 0:02:18.7]}
17. Qc4 {[%clk 0:00:18.2]} 17... Nc7 {[%clk 0:02:14.1]} 18. h4 {[%clk
0:00:17.8]} 18... Be6 {[%clk 0:02:04]} 19. Qc5 {[%clk 0:00:17.4]} 19... Qf7
{[%clk 0:01:30.8]} 20. h5 {[%clk 0:00:15.8]} 20... Nd5 {[%clk 0:01:16.9]} 21. h6
{[%clk 0:00:14.6]} 21... Bf6 {[%clk 0:01:16]} 22. Nxd5 {[%clk 0:00:14.3]} 22...
Bxd5 {[%clk 0:01:10.9]} 23. b4 {[%clk 0:00:14.3]} 23... Kg8 {[%clk 0:01:05.3]}
24. b5 {[%clk 0:00:14.5]} 24... Be7 {[%clk 0:01:00.1]} 25. bxc6 {[%clk
0:00:14.8]} 25... bxc6 {[%clk 0:00:57.8]} 26. e3 {[%clk 0:00:15.3]} 26... Bxd6
{[%clk 0:00:57.1]} 27. Bxd6 {[%clk 0:00:16.2]} 27... Rfe8 {[%clk 0:00:55.2]} 28.
Bf1 {[%clk 0:00:15.4]} 28... Rad8 {[%clk 0:00:49.4]} 29. Bf4 {[%clk 0:00:15.4]}
29... Qf6 {[%clk 0:00:47.2]} 30. Qxa7 {[%clk 0:00:15.3]} 30... g5 {[%clk
0:00:43.6]} 31. Bc7 {[%clk 0:00:13.2]} 31... Rd7 {[%clk 0:00:40.6]} 32. Qb6
{[%clk 0:00:12.5]} 32... Qxh6 {[%clk 0:00:35.3]} 33. Bc4 {[%clk 0:00:12.2]}
33... Qe6 {[%clk 0:00:30.7]} 34. Be2 {[%clk 0:00:07.1]} 34... Rc8 {[%clk
0:00:10.5]} 35. Bb8 {[%clk 0:00:06.8]} 35... Qe8 {[%clk 0:00:07.2]} 36. Ba7
{[%clk 0:00:04.2]} 36... Qf7 {[%clk 0:00:07.1]} 37. Qc5 {[%clk 0:00:04.3]} 37...
Rxa7 {[%clk 0:00:07.2]} 38. Rxd5 {[%clk 0:00:01.3]} 38... Qxd5 {[%clk
0:00:05.9]} 39. Bc4 {[%clk 0:00:01.3]} 39... Qxc4 {[%clk 0:00:02.6]} 40. Qxc4+
{[%clk 0:00:02.2]} 40... Rf7 {[%clk 0:00:02.6]} 41. Qc5 {[%clk 0:00:03.1]} 1-0